[Event "*** Titled Tuesday Blitz"]
[Site "Chess.com"]
[Date "2021.02.09"]
[Round "9"]
[White "Pintacara"]
[Black "MartinMatthiesen"]
[Result "1-0"]
[WhiteElo "2511"]
[BlackElo "2387"]
[TimeControl "180+1"]
[EndTime "11:46:10 PST"]
[Termination "Pintacara won by checkmate"]

1. d4 {[%clk 0:03:00.9]} 1... Nf6 {[%clk 0:02:59.3]} 2. Bg5 {[%clk 0:03:00]}
2... d5 {[%clk 0:02:54.7]} 3. Bxf6 {[%clk 0:02:58.5]} 3... exf6 {[%clk
0:02:54.3]} 4. e3 {[%clk 0:02:58.1]} 4... Bd6 {[%clk 0:02:53]} 5. c4 {[%clk
0:02:57.1]} 5... dxc4 {[%clk 0:02:52.8]} 6. Bxc4 {[%clk 0:02:58]} 6... O-O
{[%clk 0:02:53]} 7. Nc3 {[%clk 0:02:58.3]} 7... Nd7 {[%clk 0:02:51.4]} 8. Nf3
{[%clk 0:02:55.9]} 8... f5 {[%clk 0:02:51.2]} 9. O-O {[%clk 0:02:50.2]} 9... Nf6
{[%clk 0:02:49.5]} 10. Qc2 {[%clk 0:02:47.7]} 10... c6 {[%clk 0:02:47.6]} 11. a4
{[%clk 0:02:46.8]} 11... a5 {[%clk 0:02:46.4]} 12. Rfd1 {[%clk 0:02:41.1]} 12...
Qe7 {[%clk 0:02:37.7]} 13. h3 {[%clk 0:02:38.1]} 13... Bd7 {[%clk 0:02:09]} 14.
Rac1 {[%clk 0:02:29.6]} 14... Rad8 {[%clk 0:02:06.8]} 15. Bd3 {[%clk 0:02:21.9]}
15... g6 {[%clk 0:02:05.7]} 16. Bc4 {[%clk 0:02:22.4]} 16... Kg7 {[%clk
0:02:04.4]} 17. Re1 {[%clk 0:02:16.3]} 17... Rfe8 {[%clk 0:01:58.4]} 18. Rcd1
{[%clk 0:02:07.1]} 18... Bb4 {[%clk 0:01:43]} 19. Ne5 {[%clk 0:02:03.9]} 19...
Bc8 {[%clk 0:01:38.7]} 20. Bxf7 {[%clk 0:01:59.3]} 20... Rf8 {[%clk 0:01:35.2]}
21. Bc4 {[%clk 0:01:59.6]} 21... Be6 {[%clk 0:01:26.8]} 22. Qb3 {[%clk
0:01:55.4]} 22... Bxc4 {[%clk 0:01:25.5]} 23. Qxc4 {[%clk 0:01:56.3]} 23... Nd5
{[%clk 0:01:02.2]} 24. Re2 {[%clk 0:01:45.2]} 24... Bxc3 {[%clk 0:00:53.8]} 25.
bxc3 {[%clk 0:01:44.7]} 25... Qa3 {[%clk 0:00:54.3]} 26. Rc2 {[%clk 0:01:34.2]}
26... Nb6 {[%clk 0:00:50.7]} 27. Qa2 {[%clk 0:01:19.1]} 27... Qe7 {[%clk
0:00:38.4]} 28. Rb1 {[%clk 0:01:16.8]} 28... Nd5 {[%clk 0:00:35.2]} 29. Qc4
{[%clk 0:00:58.2]} 29... Rb8 {[%clk 0:00:28.8]} 30. Rcb2 {[%clk 0:00:57.6]}
30... Qc7 {[%clk 0:00:26.2]} 31. Nd3 {[%clk 0:00:45.6]} 31... b6 {[%clk
0:00:23.3]} 32. Ne5 {[%clk 0:00:41.7]} 32... Rbc8 {[%clk 0:00:23.4]} 33. Qd3
{[%clk 0:00:30.5]} 33... Rfe8 {[%clk 0:00:22.1]} 34. f3 {[%clk 0:00:28.2]} 34...
Rxe5 {[%clk 0:00:20.7]} 35. dxe5 {[%clk 0:00:27.2]} 35... Qxe5 {[%clk
0:00:21.6]} 36. e4 {[%clk 0:00:20.5]} 36... fxe4 {[%clk 0:00:21.4]} 37. fxe4
{[%clk 0:00:21.4]} 37... Nf6 {[%clk 0:00:21.4]} 38. Rxb6 {[%clk 0:00:20]} 38...
Re8 {[%clk 0:00:19]} 39. Rb7+ {[%clk 0:00:20]} 39... Kh6 {[%clk 0:00:18.9]} 40.
Qe3+ {[%clk 0:00:18]} 40... g5 {[%clk 0:00:18.9]} 41. h4 {[%clk 0:00:17.8]}
41... Rg8 {[%clk 0:00:17.4]} 42. R1b6 {[%clk 0:00:15.7]} 42... Qxe4 {[%clk
0:00:17]} 43. Qxe4 {[%clk 0:00:14.3]} 43... Nxe4 {[%clk 0:00:17.9]} 44. Rxc6+
{[%clk 0:00:15.1]} 44... Kh5 {[%clk 0:00:18.3]} 45. Rxh7+ {[%clk 0:00:14.7]}
45... Kg4 {[%clk 0:00:18.1]} 46. Rc4 {[%clk 0:00:13.9]} 46... Kf5 {[%clk
0:00:17.6]} 47. Rf7+ {[%clk 0:00:13.4]} 47... Ke6 {[%clk 0:00:17.7]} 48. Ra7
{[%clk 0:00:13]} 48... Nd6 {[%clk 0:00:15.8]} 49. Rc6 {[%clk 0:00:12.5]} 49...
Kd5 {[%clk 0:00:16.1]} 50. Rca6 {[%clk 0:00:12.9]} 50... Nc4 {[%clk 0:00:15.9]}
51. h5 {[%clk 0:00:09.4]} 51... g4 {[%clk 0:00:15.1]} 52. g3 {[%clk 0:00:08.8]}
52... Ke4 {[%clk 0:00:14.1]} 53. h6 {[%clk 0:00:09]} 53... Kf3 {[%clk
0:00:13.9]} 54. Rf7+ {[%clk 0:00:08.3]} 54... Kxg3 {[%clk 0:00:13.2]} 55. h7
{[%clk 0:00:09.2]} 55... Rd8 {[%clk 0:00:13.1]} 56. Raf6 {[%clk 0:00:07.1]}
56... Ne3 {[%clk 0:00:12.7]} 57. c4 {[%clk 0:00:04.1]} 57... Rd1+ {[%clk
0:00:11.8]} 58. Rf1 {[%clk 0:00:04.6]} 58... Nxf1 {[%clk 0:00:12.4]} 59. Rxf1
{[%clk 0:00:05.3]} 59... Rd8 {[%clk 0:00:12.5]} 60. c5 {[%clk 0:00:04.8]} 60...
Rh8 {[%clk 0:00:11.1]} 61. Rf7 {[%clk 0:00:04.7]} 61... Rd8 {[%clk 0:00:10.9]}
62. Kf1 {[%clk 0:00:05.3]} 62... Kh2 {[%clk 0:00:10.1]} 63. c6 {[%clk
0:00:04.2]} 63... g3 {[%clk 0:00:10.2]} 64. Rg7 {[%clk 0:00:04.7]} 64... Rc8
{[%clk 0:00:07.2]} 65. c7 {[%clk 0:00:04.3]} 65... Rxc7 {[%clk 0:00:06.7]} 66.
h8=Q# {[%clk 0:00:04.6]} 1-0

[Event "*** Titled Tuesday Blitz"]
[Site "Chess.com"]
[Date "2021.02.09"]
[Round "9"]
[White "Kurkusha"]
[Black "Ze-Pequeno"]
[Result "0-1"]
[WhiteElo "2343"]
[BlackElo "2248"]
[TimeControl "180+1"]
[EndTime "11:46:13 PST"]
[Termination "Ze-Pequeno won by resignation"]

1. d4 {[%clk 0:03:00.9]} 1... Nf6 {[%clk 0:02:53.9]} 2. c4 {[%clk 0:02:58.6]}
2... Nc6 {[%clk 0:02:28.4]} 3. Nf3 {[%clk 0:02:57.8]} 3... e6 {[%clk 0:02:28]}
4. Nc3 {[%clk 0:02:57.3]} 4... Bb4 {[%clk 0:02:27.4]} 5. Qc2 {[%clk 0:02:55.8]}
5... O-O {[%clk 0:02:27.2]} 6. e4 {[%clk 0:02:54.7]} 6... d6 {[%clk 0:02:26.3]}
7. Bd3 {[%clk 0:02:54]} 7... e5 {[%clk 0:02:25.8]} 8. Be3 {[%clk 0:02:35.6]}
8... Ng4 {[%clk 0:02:19.3]} 9. O-O {[%clk 0:02:34.2]} 9... Nxe3 {[%clk
0:02:12.4]} 10. fxe3 {[%clk 0:02:35.1]} 10... Bxc3 {[%clk 0:02:12.6]} 11. bxc3
{[%clk 0:02:34.8]} 11... b6 {[%clk 0:02:07.1]} 12. Rad1 {[%clk 0:02:20.9]} 12...
Qe7 {[%clk 0:02:05.5]} 13. Qf2 {[%clk 0:02:11.2]} 13... Ba6 {[%clk 0:01:53.1]}
14. Qg3 {[%clk 0:02:07.5]} 14... Rae8 {[%clk 0:01:47.3]} 15. Nh4 {[%clk
0:02:06.5]} 15... Kh8 {[%clk 0:01:41.6]} 16. Nf5 {[%clk 0:02:05.5]} 16... Qf6
{[%clk 0:01:40.9]} 17. Nh4 {[%clk 0:01:55.3]} 17... Qh6 {[%clk 0:01:34.7]} 18.
Rf3 {[%clk 0:01:53.8]} 18... g6 {[%clk 0:01:18.8]} 19. Rdf1 {[%clk 0:01:50.1]}
19... Qg7 {[%clk 0:01:14.8]} 20. Qh3 {[%clk 0:01:39.6]} 20... Kg8 {[%clk
0:01:09.7]} 21. Rg3 {[%clk 0:01:38.4]} 21... Qh6 {[%clk 0:00:59.9]} 22. Qd7
{[%clk 0:01:30.2]} 22... Nb8 {[%clk 0:00:48.8]} 23. Qg4 {[%clk 0:01:20.2]} 23...
Kh8 {[%clk 0:00:26]} 24. Rh3 {[%clk 0:01:13.9]} 24... Bc8 {[%clk 0:00:25.6]} 25.
Nf5 {[%clk 0:01:10.1]} 25... gxf5 {[%clk 0:00:25.1]} 26. exf5 {[%clk 0:01:10.2]}
26... Qf6 {[%clk 0:00:24.8]} 27. Qh5 {[%clk 0:01:08.7]} 27... h6 {[%clk
0:00:24.7]} 28. Qxh6+ {[%clk 0:00:55.5]} 28... Qxh6 {[%clk 0:00:24.5]} 29. Rxh6+
{[%clk 0:00:56.4]} 29... Kg7 {[%clk 0:00:25.2]} 30. Rh4 {[%clk 0:00:51.1]} 30...
Kf6 {[%clk 0:00:20.9]} 31. Rh6+ {[%clk 0:00:43.8]} 31... Kg7 {[%clk 0:00:20.4]}
32. Rh3 {[%clk 0:00:42.5]} 32... f6 {[%clk 0:00:20.7]} 33. Rg3+ {[%clk
0:00:42.3]} 33... Kf7 {[%clk 0:00:20.6]} 34. c5 {[%clk 0:00:39.8]} 34... d5
{[%clk 0:00:20.3]} 35. e4 {[%clk 0:00:36]} 35... c6 {[%clk 0:00:19.6]} 36. exd5
{[%clk 0:00:33.6]} 36... cxd5 {[%clk 0:00:20.5]} 37. Rh3 {[%clk 0:00:27.2]}
37... Rh8 {[%clk 0:00:20]} 38. Re3 {[%clk 0:00:20.1]} 38... e4 {[%clk
0:00:19.2]} 39. Bb5 {[%clk 0:00:19.6]} 39... Rd8 {[%clk 0:00:18.6]} 40. h3
{[%clk 0:00:18.3]} 40... bxc5 {[%clk 0:00:17.7]} 41. dxc5 {[%clk 0:00:18.6]}
41... Nd7 {[%clk 0:00:18.3]} 42. c6 {[%clk 0:00:18]} 42... Ne5 {[%clk
0:00:18.7]} 43. Kf2 {[%clk 0:00:17.5]} 43... a6 {[%clk 0:00:16.8]} 44. Ba4
{[%clk 0:00:17.2]} 44... Rd6 {[%clk 0:00:16.1]} 45. g4 {[%clk 0:00:16.4]} 45...
Nd3+ {[%clk 0:00:15.3]} 46. Ke2 {[%clk 0:00:16.2]} 46... Nc5 {[%clk 0:00:15.4]}
47. Bb3 {[%clk 0:00:16.1]} 47... Nxb3 {[%clk 0:00:14.5]} 48. axb3 {[%clk
0:00:17]} 48... Rxc6 {[%clk 0:00:15.3]} 49. Ra1 {[%clk 0:00:14]} 49... Rd8
{[%clk 0:00:13.2]} 50. h4 {[%clk 0:00:10.1]} 50... Bb7 {[%clk 0:00:12.4]} 51.
Rd1 {[%clk 0:00:08.6]} 51... Rc5 {[%clk 0:00:11.4]} 52. Rd4 {[%clk 0:00:08.1]}
52... Rdc8 {[%clk 0:00:10.4]} 53. Kd2 {[%clk 0:00:08.6]} 53... a5 {[%clk
0:00:10]} 54. Kc2 {[%clk 0:00:07.5]} 54... Rh8 {[%clk 0:00:09.9]} 55. h5 {[%clk
0:00:07.2]} 55... Rg8 {[%clk 0:00:10.1]} 56. Rg3 {[%clk 0:00:07.7]} 56... Kg7
{[%clk 0:00:09.9]} 57. g5 {[%clk 0:00:06.4]} 57... fxg5 {[%clk 0:00:09.8]} 58.
Rxg5+ {[%clk 0:00:07.3]} 58... Kf7 {[%clk 0:00:10.7]} 59. Rg6 {[%clk 0:00:07]}
59... Bc8 {[%clk 0:00:09.5]} 60. Rd6 {[%clk 0:00:03.5]} 60... Bxf5 {[%clk
0:00:08.2]} 61. R6xd5 {[%clk 0:00:03.5]} 61... Rxd5 {[%clk 0:00:09.1]} 62. Rxd5
{[%clk 0:00:04.4]} 62... Kf6 {[%clk 0:00:09.5]} 63. Kd2 {[%clk 0:00:04.7]} 63...
Rg2+ {[%clk 0:00:08.2]} 64. Ke3 {[%clk 0:00:05.1]} 64... Rg3+ {[%clk 0:00:08.5]}
65. Kd4 {[%clk 0:00:05.3]} 65... Rd3+ {[%clk 0:00:08.4]} 66. Kc4 {[%clk
0:00:03.7]} 66... Rxd5 {[%clk 0:00:09.3]} 67. Kxd5 {[%clk 0:00:04.1]} 67... e3
{[%clk 0:00:10.2]} 0-1

[Event "*** Titled Tuesday Blitz"]
[Site "Chess.com"]
[Date "2021.02.09"]
[Round "9"]
[White "FGHSMN"]
[Black "SilviusTiberius"]
[Result "1-0"]
[WhiteElo "2629"]
[BlackElo "2506"]
[TimeControl "180+1"]
[EndTime "11:46:14 PST"]
[Termination "FGHSMN won by checkmate"]

1. e4 {[%clk 0:03:00.9]} 1... e5 {[%clk 0:02:59.9]} 2. Nf3 {[%clk 0:02:59.9]}
2... Nc6 {[%clk 0:03:00.5]} 3. Bc4 {[%clk 0:02:59]} 3... Bc5 {[%clk 0:02:59.8]}
4. d3 {[%clk 0:02:57.9]} 4... Nf6 {[%clk 0:03:00.1]} 5. a4 {[%clk 0:02:56.3]}
5... d6 {[%clk 0:02:58.7]} 6. c3 {[%clk 0:02:40.4]} 6... a6 {[%clk 0:02:58.9]}
7. O-O {[%clk 0:02:38.6]} 7... h6 {[%clk 0:02:59.4]} 8. d4 {[%clk 0:02:14.6]}
8... Ba7 {[%clk 0:02:41.2]} 9. dxe5 {[%clk 0:02:00.8]} 9... Nxe5 {[%clk
0:02:40.1]} 10. Nxe5 {[%clk 0:01:55]} 10... dxe5 {[%clk 0:02:41]} 11. Qxd8+
{[%clk 0:01:54.8]} 11... Kxd8 {[%clk 0:02:41.9]} 12. Bxf7 {[%clk 0:01:54.8]}
12... Nxe4 {[%clk 0:02:41]} 13. Be3 {[%clk 0:01:21.9]} 13... Bxe3 {[%clk
0:02:38.4]} 14. fxe3 {[%clk 0:01:22.8]} 14... Rf8 {[%clk 0:02:38.7]} 15. Na3
{[%clk 0:01:20.5]} 15... Ke7 {[%clk 0:02:12.3]} 16. Bg6 {[%clk 0:01:13.6]} 16...
Rxf1+ {[%clk 0:02:02.5]} 17. Rxf1 {[%clk 0:01:14.5]} 17... Nd6 {[%clk
0:02:00.5]} 18. c4 {[%clk 0:01:06.3]} 18... c5 {[%clk 0:01:50.8]} 19. b3 {[%clk
0:01:03.6]} 19... Bd7 {[%clk 0:01:48.5]} 20. a5 {[%clk 0:01:02.6]} 20... Rb8
{[%clk 0:01:43.3]} 21. Nb1 {[%clk 0:00:49.6]} 21... b6 {[%clk 0:01:41.8]} 22.
Nc3 {[%clk 0:00:24.7]} 22... Bc6 {[%clk 0:01:40.7]} 23. axb6 {[%clk 0:00:22.3]}
23... Rxb6 {[%clk 0:01:41.6]} 24. Rb1 {[%clk 0:00:22.2]} 24... e4 {[%clk
0:01:40.8]} 25. Bh5 {[%clk 0:00:22.1]} 25... Ke6 {[%clk 0:01:32.7]} 26. Bg4+
{[%clk 0:00:20.8]} 26... Ke5 {[%clk 0:01:33]} 27. Bd1 {[%clk 0:00:21]} 27... Rb8
{[%clk 0:01:25.5]} 28. Ra1 {[%clk 0:00:20.9]} 28... Rb6 {[%clk 0:01:18.6]} 29.
Bc2 {[%clk 0:00:20.5]} 29... Nf5 {[%clk 0:01:09.3]} 30. Kf2 {[%clk 0:00:19.7]}
30... Nd6 {[%clk 0:00:59.3]} 31. Rd1 {[%clk 0:00:16.2]} 31... Rb8 {[%clk
0:00:55.9]} 32. Ra1 {[%clk 0:00:16.2]} 32... Bb7 {[%clk 0:00:49.8]} 33. Ra5
{[%clk 0:00:14.4]} 33... Rc8 {[%clk 0:00:50.3]} 34. Na4 {[%clk 0:00:14]} 34...
Rf8+ {[%clk 0:00:35.6]} 35. Ke2 {[%clk 0:00:13.8]} 35... Bc8 {[%clk 0:00:36.2]}
36. Nxc5 {[%clk 0:00:12.7]} 36... Bg4+ {[%clk 0:00:36.1]} 37. Ke1 {[%clk
0:00:12]} 37... Kf6 {[%clk 0:00:31.6]} 38. Rxa6 {[%clk 0:00:12]} 38... Ke7
{[%clk 0:00:28.5]} 39. Nxe4 {[%clk 0:00:11.6]} 39... Nf5 {[%clk 0:00:25.8]} 40.
Nf2 {[%clk 0:00:08.8]} 40... Nxe3 {[%clk 0:00:25.2]} 41. Nxg4 {[%clk 0:00:08.7]}
41... Nxg4 {[%clk 0:00:22.9]} 42. Ra7+ {[%clk 0:00:09]} 42... Kf6 {[%clk
0:00:21.1]} 43. h3 {[%clk 0:00:08.5]} 43... Ne3 {[%clk 0:00:21.3]} 44. Be4
{[%clk 0:00:08.3]} 44... Ke5 {[%clk 0:00:21.4]} 45. Bf3 {[%clk 0:00:07.9]} 45...
g5 {[%clk 0:00:21.7]} 46. Kf2 {[%clk 0:00:07.6]} 46... Nd1+ {[%clk 0:00:20.1]}
47. Kg3 {[%clk 0:00:07.9]} 47... Nc3 {[%clk 0:00:19.2]} 48. c5 {[%clk
0:00:07.7]} 48... h5 {[%clk 0:00:18.8]} 49. c6 {[%clk 0:00:07.5]} 49... h4+
{[%clk 0:00:19.4]} 50. Kh2 {[%clk 0:00:06.8]} 50... Nb5 {[%clk 0:00:18]} 51. Ra5
{[%clk 0:00:06]} 51... Kd4 {[%clk 0:00:13.4]} 52. Rxb5 {[%clk 0:00:05.7]} 52...
Re8 {[%clk 0:00:14.3]} 53. Rd5+ {[%clk 0:00:05.7]} 53... Kc3 {[%clk 0:00:13.7]}
54. c7 {[%clk 0:00:06.1]} 54... Kb2 {[%clk 0:00:12]} 55. Rc5 {[%clk 0:00:06]}
55... Re1 {[%clk 0:00:12.1]} 56. c8=Q {[%clk 0:00:04.8]} 56... g4 {[%clk
0:00:13]} 57. hxg4 {[%clk 0:00:04.3]} 57... h3 {[%clk 0:00:13.1]} 58. Rc2+
{[%clk 0:00:04.1]} 58... Kb1 {[%clk 0:00:12.8]} 59. Be4 {[%clk 0:00:02.8]} 59...
Ka1 {[%clk 0:00:09.8]} 60. Rc1+ {[%clk 0:00:03]} 60... Kb2 {[%clk 0:00:10]} 61.
Qc2+ {[%clk 0:00:03.5]} 61... Ka3 {[%clk 0:00:10.4]} 62. Rxe1 {[%clk 0:00:04.3]}
62... hxg2 {[%clk 0:00:11.3]} 63. Qc4 {[%clk 0:00:04.3]} 63... Ka2 {[%clk
0:00:11.7]} 64. Kg1 {[%clk 0:00:04.8]} 64... Kb2 {[%clk 0:00:12.6]} 65. Re2+
{[%clk 0:00:05.1]} 65... Ka3 {[%clk 0:00:13.5]} 66. Qa6+ {[%clk 0:00:04.9]}
66... Kb4 {[%clk 0:00:13]} 67. Qb6+ {[%clk 0:00:05.6]} 67... Kc3 {[%clk
0:00:13.9]} 68. Qc5+ {[%clk 0:00:05.9]} 68... Kxb3 {[%clk 0:00:13.1]} 69. Qb5+
{[%clk 0:00:06.1]} 69... Ka3 {[%clk 0:00:14]} 70. Qa5+ {[%clk 0:00:05.6]} 70...
Kb3 {[%clk 0:00:14]} 71. Bd5# {[%clk 0:00:05.9]} 1-0

[Event "*** Titled Tuesday Blitz"]
[Site "Chess.com"]
[Date "2021.02.09"]
[Round "9"]
[White "Euwe1234"]
[Black "Legendinunknown"]
[Result "1/2-1/2"]
[WhiteElo "2476"]
[BlackElo "2602"]
[TimeControl "180+1"]
[EndTime "11:46:17 PST"]
[Termination "Game drawn by repetition"]

1. e4 {[%clk 0:03:00.9]} 1... e5 {[%clk 0:02:09.6]} 2. Nf3 {[%clk 0:02:57.5]}
2... Nc6 {[%clk 0:02:07.8]} 3. Bb5 {[%clk 0:02:57.5]} 3... a6 {[%clk 0:02:07.2]}
4. Ba4 {[%clk 0:02:57.7]} 4... d6 {[%clk 0:02:06.1]} 5. c3 {[%clk 0:02:54.3]}
5... g6 {[%clk 0:02:05.4]} 6. d4 {[%clk 0:02:54]} 6... Bd7 {[%clk 0:02:05.2]} 7.
O-O {[%clk 0:02:51.8]} 7... Bg7 {[%clk 0:02:02.6]} 8. Re1 {[%clk 0:02:49.3]}
8... Nge7 {[%clk 0:02:02.3]} 9. Bg5 {[%clk 0:02:46.9]} 9... f6 {[%clk
0:01:50.6]} 10. Be3 {[%clk 0:02:44.7]} 10... O-O {[%clk 0:01:50.1]} 11. Bb3+
{[%clk 0:02:44]} 11... Kh8 {[%clk 0:01:49.9]} 12. Qd2 {[%clk 0:02:44.9]} 12...
Na5 {[%clk 0:01:45.3]} 13. Bh6 {[%clk 0:02:42.2]} 13... Nxb3 {[%clk 0:01:44.8]}
14. axb3 {[%clk 0:02:41.9]} 14... Bg4 {[%clk 0:01:40.7]} 15. Bxg7+ {[%clk
0:02:41.4]} 15... Kxg7 {[%clk 0:01:41.6]} 16. Re3 {[%clk 0:02:35.6]} 16... f5
{[%clk 0:01:37.8]} 17. dxe5 {[%clk 0:02:34.8]} 17... Bxf3 {[%clk 0:01:32.5]} 18.
Rxf3 {[%clk 0:02:27.9]} 18... dxe5 {[%clk 0:01:30.8]} 19. exf5 {[%clk
0:02:27.6]} 19... Nxf5 {[%clk 0:01:31.5]} 20. Qe1 {[%clk 0:02:25.7]} 20... e4
{[%clk 0:01:28.6]} 21. Rf4 {[%clk 0:02:23.7]} 21... Qg5 {[%clk 0:01:19.3]} 22.
Rxe4 {[%clk 0:02:21.1]} 22... Rae8 {[%clk 0:00:54]} 23. Rxe8 {[%clk 0:01:23.1]}
23... Rxe8 {[%clk 0:00:54.9]} 24. Qf1 {[%clk 0:01:22.3]} 24... Nh4 {[%clk
0:00:44.5]} 25. Na3 {[%clk 0:01:20.1]} 25... Re2 {[%clk 0:00:43.4]} 26. Nc4
{[%clk 0:01:15.5]} 26... b5 {[%clk 0:00:21.8]} 27. Ne3 {[%clk 0:01:08.1]} 27...
Rxb2 {[%clk 0:00:21.4]} 28. Rxa6 {[%clk 0:01:05.4]} 28... Nf3+ {[%clk
0:00:19.7]} 29. Kh1 {[%clk 0:01:04.7]} 29... Nd2 {[%clk 0:00:19.4]} 30. Qe2
{[%clk 0:01:00.3]} 30... Rb1+ {[%clk 0:00:19.3]} 31. Nd1 {[%clk 0:00:59.3]}
31... Ne4 {[%clk 0:00:15.5]} 32. g3 {[%clk 0:00:47]} 32... Qd5 {[%clk
0:00:13.6]} 33. Kg2 {[%clk 0:00:42.8]} 33... Nc5+ {[%clk 0:00:13.5]} 34. Kh3
{[%clk 0:00:41.5]} 34... Qf5+ {[%clk 0:00:07.5]} 35. g4 {[%clk 0:00:41.2]} 35...
Qd3+ {[%clk 0:00:04.8]} 36. Qxd3 {[%clk 0:00:40.5]} 36... Nxd3 {[%clk
0:00:05.7]} 37. Ne3 {[%clk 0:00:38.1]} 37... Rxb3 {[%clk 0:00:06.1]} 38. Rc6
{[%clk 0:00:36.4]} 38... h5 {[%clk 0:00:03.8]} 39. Rxc7+ {[%clk 0:00:35.4]}
39... Kf6 {[%clk 0:00:03.4]} 40. Kg3 {[%clk 0:00:34.6]} 40... Ne5 {[%clk
0:00:01.9]} 41. f4 {[%clk 0:00:32.7]} 41... Nxg4 {[%clk 0:00:01.7]} 42. Nxg4+
{[%clk 0:00:32]} 42... hxg4 {[%clk 0:00:02.6]} 43. Kxg4 {[%clk 0:00:32.9]} 43...
Rb2 {[%clk 0:00:03.1]} 44. h4 {[%clk 0:00:31.9]} 44... Rg2+ {[%clk 0:00:02.7]}
45. Kf3 {[%clk 0:00:32.2]} 45... Rb2 {[%clk 0:00:03.6]} 46. Rc6+ {[%clk
0:00:32.1]} 46... Kg7 {[%clk 0:00:03.3]} 47. Rb6 {[%clk 0:00:29.4]} 47... Rb3
{[%clk 0:00:02.6]} 48. Kg4 {[%clk 0:00:28.7]} 48... Rxc3 {[%clk 0:00:02.9]} 49.
Rxb5 {[%clk 0:00:29.1]} 49... Rc1 {[%clk 0:00:03.6]} 50. Rb6 {[%clk 0:00:26.3]}
50... Rg1+ {[%clk 0:00:02.2]} 51. Kh3 {[%clk 0:00:26.4]} 51... Rf1 {[%clk
0:00:02.7]} 52. Kg3 {[%clk 0:00:26.4]} 52... Rg1+ {[%clk 0:00:03]} 53. Kh2
{[%clk 0:00:26.5]} 53... Rf1 {[%clk 0:00:03.5]} 54. Rb4 {[%clk 0:00:27.2]} 54...
Rf2+ {[%clk 0:00:03.7]} 55. Kg3 {[%clk 0:00:27.2]} 55... Rf1 {[%clk 0:00:04.2]}
56. Rb5 {[%clk 0:00:25.9]} 56... Kh6 {[%clk 0:00:04.3]} 57. Rg5 {[%clk
0:00:24.9]} 57... Rg1+ {[%clk 0:00:04.4]} 58. Kf3 {[%clk 0:00:25]} 58... Rh1
{[%clk 0:00:04.5]} 59. Kg4 {[%clk 0:00:19.3]} 59... Rg1+ {[%clk 0:00:04.6]} 60.
Kh3 {[%clk 0:00:19.1]} 60... Rh1+ {[%clk 0:00:05.1]} 61. Kg3 {[%clk 0:00:19.4]}
61... Rg1+ {[%clk 0:00:05.3]} 62. Kh2 {[%clk 0:00:19.6]} 62... Ra1 {[%clk
0:00:05.5]} 63. Rd5 {[%clk 0:00:18.5]} 63... Ra4 {[%clk 0:00:05.9]} 64. Kg3
{[%clk 0:00:17.5]} 64... Ra1 {[%clk 0:00:06.3]} 65. f5 {[%clk 0:00:17]} 65...
Rg1+ {[%clk 0:00:06.5]} 66. Kh2 {[%clk 0:00:16.7]} 66... Rf1 {[%clk 0:00:07]}
67. fxg6 {[%clk 0:00:15.1]} 67... Kxg6 {[%clk 0:00:07.9]} 68. Kg3 {[%clk
0:00:15.7]} 68... Rf8 {[%clk 0:00:07.9]} 69. Rd6+ {[%clk 0:00:15.1]} 69... Kh5
{[%clk 0:00:08]} 70. Rd5+ {[%clk 0:00:15.6]} 70... Kh6 {[%clk 0:00:08.4]} 71.
Kg4 {[%clk 0:00:16.5]} 71... Rg8+ {[%clk 0:00:08.3]} 72. Kh3 {[%clk 0:00:15.5]}
72... Ra8 {[%clk 0:00:08.7]} 73. Kg4 {[%clk 0:00:15]} 73... Ra4+ {[%clk
0:00:07.9]} 74. Kh3 {[%clk 0:00:14.4]} 74... Ra3+ {[%clk 0:00:08.5]} 75. Kg2
{[%clk 0:00:14.8]} 75... Ra4 {[%clk 0:00:08.9]} 76. Kg3 {[%clk 0:00:15.7]} 76...
Ra3+ {[%clk 0:00:09]} 77. Kg4 {[%clk 0:00:16.6]} 77... Ra4+ {[%clk 0:00:09.4]}
78. Kg3 {[%clk 0:00:17.5]} 78... Ra3+ {[%clk 0:00:09.8]} 79. Kg4 {[%clk
0:00:18.4]} 79... Ra4+ {[%clk 0:00:10]} 1/2-1/2